[Event "Dvaro taure"]
[Site "Taujenai, Lithuania"]
[Date "2021.11.28"]
[Round "9.1"]
[White "Povilaitis, Matas"]
[Black "Laurusas, Tomas"]
[Result "0-1"]
[WhiteElo "1910"]
[BlackElo "2550"]
[PlyCount "80"]
[EventDate "2021.??.??"]
[TimeControl "10+5"]
[WhiteClock "0:00:51"]
[BlackClock "0:00:50"]

1. d4 {[%emt 0:29:21]} Nf6 {[%emt 0:00:02]} 2. Bg5 {[%emt 0:00:02]} Ne4 {[%emt
0:00:01]} 3. Bf4 {[%emt 0:00:02]} c5 {[%emt 0:00:00]} 4. f3 {[%emt 0:00:03]}
Qa5+ {[%emt 0:00:00]} 5. c3 {[%emt 0:00:02]} Nf6 {[%emt 0:00:01]} 6. d5 {[%emt
0:00:02]} Qb6 {[%emt 0:00:07]} 7. Bc1 {[%emt 0:00:06]} e6 {[%emt 0:00:02]} 8.
e4 {[%emt 0:00:03]} exd5 {[%emt 0:00:17]} 9. exd5 {[%emt 0:00:02]} Bd6 {[%emt
0:00:00]} 10. c4 {[%emt 0:00:32]} O-O {[%emt 0:00:08]} 11. Bd3 {[%emt 0:00:02]}
Be5 {[%emt 0:00:45]} 12. Qb3 {[%emt 0:00:46]} Qd6 {[%emt 0:03:47]} 13. Ne2 {
[%emt 0:00:06]} Re8 {[%emt 0:00:08]} 14. Nbc3 {[%emt 0:01:28]} Na6 {[%emt 0:00:
20]} 15. Nb5 {[%emt 0:01:09]} Qb8 {[%emt 0:00:01]} 16. Bg5 {[%emt 0:00:32]} Nb4
{[%emt 0:02:18]} 17. Bxf6 {[%emt 0:00:56]} Bxf6 {[%emt 0:00:55]} 18. d6 {[%emt
0:00:20]} Bd8 {[%emt 0:01:08]} 19. Be4 {[%emt 0:00:49]} a6 {[%emt 0:00:06]} 20.
Nbc3 {[%emt 0:00:05]} Qxd6 {[%emt 0:00:05]} 21. O-O {[%emt 0:00:24]} Rb8 {
[%emt 0:00:25]} 22. Rad1 {[%emt 0:00:10]} Qh6 {[%emt 0:00:02]} 23. Ng3 {[%emt
0:00:42]} Bc7 {[%emt 0:00:10]} 24. a3 {[%emt 0:00:18]} Nc6 {[%emt 0:00:03]} 25.
Nd5 {[%emt 0:00:13]} Nd4 {[%emt 0:00:16]} 26. Nxc7 {[%emt 0:00:36]} Nxb3 {
[%emt 0:00:03]} 27. Nxe8 {[%emt 0:00:02]} d5 {[%emt 0:00:32]} 28. cxd5 {[%emt
0:01:06]} f5 {[%emt 0:00:00]} 29. Bc2 {[%emt 0:00:07]} Nd4 {[%emt 0:00:07]} 30.
Rxd4 {[%emt 0:00:51]} Qe3+ {[%emt 0:00:01]} 31. Kh1 {[%emt 0:00:03]} cxd4 {
[%emt 0:00:02]} 32. Nd6 {[%emt 0:00:03]} d3 {[%emt 0:00:00]} 33. Bd1 {[%emt 0:
00:13]} g6 {[%emt 0:00:23]} 34. Nc4 {[%emt 0:00:02]} Qd4 {[%emt 0:00:02]} 35.
Nd2 {[%emt 0:00:05]} Qxb2 {[%emt 0:00:07]} 36. Nc4 {[%emt 0:00:05]} Qc3 {[%emt
0:00:02]} 37. Nb6 {[%emt 0:00:07]} Qc5 {[%emt 0:00:04]} 38. Na4 {[%emt 0:00:04]
} Qxa3 {[%emt 0:00:03]} 39. d6 {[%emt 0:00:08]} Be6 {[%emt 0:00:01]} 40. Nb6 {
[%emt 0:00:06]} Qxd6 {[%emt 0:00:02]} 0-1

[Event "Dvaro taure"]
[Site "Taujenai, Lithuania"]
[Date "2021.11.28"]
[Round "9.3"]
[White "Povilaitis, Tomas"]
[Black "Baliasnyj, Timur"]
[Result "1-0"]
[WhiteElo "1986"]
[BlackElo "2001"]
[PlyCount "51"]
[EventDate "2021.??.??"]
[TimeControl "10+5"]
[WhiteClock "0:05:36"]
[BlackClock "0:00:09"]

1. e4 {[%emt 0:20:59]} c5 {[%emt 0:00:04]} 2. Nc3 {[%emt 0:00:01]} Nc6 {[%emt
0:00:29]} 3. Bb5 {[%emt 0:00:01]} g6 {[%emt 0:00:13]} 4. Bxc6 {[%emt 0:00:03]}
dxc6 {[%emt 0:00:01]} 5. f4 {[%emt 0:00:02]} Bg7 {[%emt 0:00:02]} 6. d3 {[%emt
0:00:02]} Nf6 {[%emt 0:00:14]} 7. Nf3 {[%emt 0:00:01]} O-O {[%emt 0:00:10]} 8.
O-O {[%emt 0:00:03]} Ne8 {[%emt 0:01:42]} 9. Qe1 {[%emt 0:00:51]} Nc7 {[%emt 0:
00:02]} 10. Qh4 {[%emt 0:01:10]} Ne6 {[%emt 0:00:26]} 11. f5 {[%emt 0:00:24]}
Nd4 {[%emt 0:00:02]} 12. Nxd4 {[%emt 0:00:23]} Qxd4+ {[%emt 0:02:17]} 13. Kh1 {
[%emt 0:00:00]} c4 {[%emt 0:00:50]} 14. Bh6 {[%emt 0:00:46]} cxd3 {[%emt 0:00:
50]} 15. Bxg7 {[%emt 0:00:03]} Kxg7 {[%emt 0:00:15]} 16. cxd3 {[%emt 0:00:02]}
Qf6 {[%emt 0:01:32]} 17. Qg3 {[%emt 0:00:07]} e5 {[%emt 0:00:52]} 18. fxg6 {
[%emt 0:00:21]} Qxg6 {[%emt 0:00:01]} 19. Qxe5+ {[%emt 0:00:02]} f6 {[%emt 0:
00:05]} 20. Qf4 {[%emt 0:00:25]} Be6 {[%emt 0:00:06]} 21. Rf3 {[%emt 0:00:14]}
Kh8 {[%emt 0:00:11]} 22. Rg3 {[%emt 0:00:14]} Qf7 {[%emt 0:00:16]} 23. Rf1 {
[%emt 0:00:02]} Rad8 {[%emt 0:00:39]} 24. Rgf3 {[%emt 0:00:23]} Bxa2 {[%emt 0:
00:37]} 25. Qh6 {[%emt 0:00:49]} Rd6 {[%emt 0:00:09]} 26. Nxa2 {[%emt 0:00:04]}
1-0

[Event "Dvaro taure"]
[Site "Taujenai, Lithuania"]
[Date "2021.11.28"]
[Round "9.4"]
[White "Aleknavicius, Andrius"]
[Black "Salna, Aleksandras"]
[Result "0-1"]
[WhiteElo "1942"]
[BlackElo "2088"]
[PlyCount "114"]
[EventDate "2021.??.??"]
[TimeControl "10+5"]
[WhiteClock "0:00:25"]
[BlackClock "0:02:17"]

1. d4 {[%emt 0:00:11]} d5 {[%emt 0:00:03]} 2. Bf4 {[%emt 0:00:02]} Nf6 {[%emt
0:00:08]} 3. e3 {[%emt 0:00:02]} c5 {[%emt 0:00:07]} 4. dxc5 {[%emt 0:00:18]}
Nc6 {[%emt 0:00:11]} 5. Nf3 {[%emt 0:00:07]} e6 {[%emt 0:00:12]} 6. Nc3 {[%emt
0:00:53]} Bxc5 {[%emt 0:00:06]} 7. Bd3 {[%emt 0:00:46]} Bb4 {[%emt 0:00:30]} 8.
O-O {[%emt 0:00:23]} Bxc3 {[%emt 0:00:03]} 9. bxc3 {[%emt 0:00:01]} Qe7 {[%emt
0:00:18]} 10. Ne5 {[%emt 0:00:26]} O-O {[%emt 0:00:20]} 11. c4 {[%emt 0:00:27]}
Nxe5 {[%emt 0:00:45]} 12. Bxe5 {[%emt 0:00:00]} dxc4 {[%emt 0:00:06]} 13. Bxc4
{[%emt 0:00:06]} Rd8 {[%emt 0:00:08]} 14. Qf3 {[%emt 0:00:12]} Bd7 {[%emt 0:01:
32]} 15. Rfd1 {[%emt 0:01:08]} Bc6 {[%emt 0:00:12]} 16. Qg3 {[%emt 0:00:01]} h6
{[%emt 0:00:16]} 17. Qh4 {[%emt 0:01:15]} Rxd1+ {[%emt 0:00:09]} 18. Rxd1 {
[%emt 0:00:00]} Rd8 {[%emt 0:00:03]} 19. Rxd8+ {[%emt 0:00:22]} Qxd8 {[%emt 0:
00:02]} 20. Bxf6 {[%emt 0:00:15]} Qxf6 {[%emt 0:00:41]} 21. Qxf6 {[%emt 0:00:
23]} gxf6 {[%emt 0:00:02]} 22. g3 {[%emt 0:00:13]} Kf8 {[%emt 0:00:02]} 23. Kf1
{[%emt 0:00:05]} Ke7 {[%emt 0:00:01]} 24. Ke2 {[%emt 0:00:14]} Kd6 {[%emt 0:00:
03]} 25. a3 {[%emt 0:00:24]} Kc5 {[%emt 0:00:04]} 26. Bb3 {[%emt 0:00:06]} Bd5
{[%emt 0:00:04]} 27. Kd2 {[%emt 0:00:22]} Bf3 {[%emt 0:01:28]} 28. h4 {[%emt 0:
01:25]} a5 {[%emt 0:00:08]} 29. c3 {[%emt 0:01:11]} Be4 {[%emt 0:00:17]} 30. f4
{[%emt 0:01:10]} b6 {[%emt 0:00:20]} 31. Ba4 {[%emt 0:00:06]} Kc4 {[%emt 0:00:
17]} 32. Bd1 {[%emt 0:00:03]} Bg6 {[%emt 0:00:31]} 33. a4 {[%emt 0:00:08]} Kc5
{[%emt 0:00:40]} 34. Be2 {[%emt 0:00:03]} Kd5 {[%emt 0:00:29]} 35. Bf3+ {[%emt
0:00:06]} Kd6 {[%emt 0:00:14]} 36. g4 {[%emt 0:00:04]} Kc5 {[%emt 0:00:10]} 37.
Be2 {[%emt 0:00:02]} Be4 {[%emt 0:00:07]} 38. Bb5 {[%emt 0:00:07]} Bf3 {[%emt
0:00:06]} 39. Be8 {[%emt 0:00:05]} Bxg4 {[%emt 0:00:05]} 40. Bxf7 {[%emt 0:00:
02]} e5 {[%emt 0:00:18]} 41. fxe5 {[%emt 0:00:06]} fxe5 {[%emt 0:00:02]} 42.
Kd3 {[%emt 0:00:11]} Bf5+ {[%emt 0:00:08]} 43. Kd2 {[%emt 0:00:05]} Bd7 {[%emt
0:00:06]} 44. Bb3 {[%emt 0:00:03]} Bc6 {[%emt 0:00:18]} 45. Kd3 {[%emt 0:00:05]
} Bd5 {[%emt 0:00:16]} 46. Bd1 {[%emt 0:00:07]} b5 {[%emt 0:00:05]} 47. axb5 {
[%emt 0:00:04]} Kxb5 {[%emt 0:00:02]} 48. c4+ {[%emt 0:00:04]} Bxc4+ {[%emt 0:
00:03]} 49. Ke4 {[%emt 0:00:00]} Kb4 {[%emt 0:00:04]} 50. Kxe5 {[%emt 0:00:06]}
Bb3 {[%emt 0:00:01]} 51. Bg4 {[%emt 0:00:11]} a4 {[%emt 0:00:01]} 52. Kf6 {
[%emt 0:00:04]} a3 {[%emt 0:00:01]} 53. Kg6 {[%emt 0:00:02]} a2 {[%emt 0:00:03]
} 54. Kxh6 {[%emt 0:00:01]} a1=Q {[%emt 0:00:02]} 55. h5 {[%emt 0:00:03]} Qf6+
{[%emt 0:00:02]} 56. Kh7 {[%emt 0:00:01]} Bc2+ {[%emt 0:00:06]} 57. Kg8 {[%emt
0:00:01]} Qg5+ {[%emt 0:00:01]} 0-1

[Event "Dvaro taure"]
[Site "Taujenai, Lithuania"]
[Date "2021.11.28"]
[Round "9.5"]
[White "Bazilius, Augustinas"]
[Black "Juknis, Paulius"]
[Result "0-1"]
[WhiteElo "1911"]
[BlackElo "2059"]
[PlyCount "148"]
[EventDate "2021.??.??"]
[TimeControl "10+5"]
[WhiteClock "0:00:49"]
[BlackClock "0:02:46"]

1. d4 {[%emt 0:00:05]} g6 {[%emt 0:00:02]} 2. c4 Bg7 {[%emt 0:00:01]} 3. Nf3 {
[%emt 0:00:01]} f5 {[%emt 0:00:03]} 4. g3 {[%emt 0:00:03]} Nf6 {[%emt 0:00:00]}
5. Bg2 {[%emt 0:00:02]} O-O {[%emt 0:00:02]} 6. O-O {[%emt 0:00:03]} d6 {[%emt
0:00:00]} 7. Nc3 {[%emt 0:00:02]} Qe8 {[%emt 0:00:00]} 8. d5 {[%emt 0:00:30]}
Na6 {[%emt 0:00:07]} 9. Nd4 {[%emt 0:00:14]} Bd7 {[%emt 0:00:26]} 10. e4 {
[%emt 0:01:18]} fxe4 {[%emt 0:00:11]} 11. Nxe4 {[%emt 0:00:01]} Nxe4 {[%emt 0:
00:32]} 12. Bxe4 Nc5 {[%emt 0:00:07]} 13. Bg2 {[%emt 0:00:03]} Qf7 {[%emt 0:01:
06]} 14. Be3 {[%emt 0:00:11]} a5 {[%emt 0:00:10]} 15. b3 {[%emt 0:00:24]} Rab8
{[%emt 0:00:34]} 16. Rb1 {[%emt 0:00:22]} e5 {[%emt 0:00:06]} 17. dxe6 {[%emt
0:00:10]} Nxe6 {[%emt 0:00:02]} 18. Nxe6 {[%emt 0:00:21]} Bxe6 {[%emt 0:00:01]}
19. Bd4 {[%emt 0:00:03]} b6 {[%emt 0:00:32]} 20. Bxg7 {[%emt 0:00:06]} Kxg7 {
[%emt 0:00:15]} 21. Qd4+ {[%emt 0:00:05]} Qf6 {[%emt 0:00:01]} 22. Qxf6+ {
[%emt 0:00:14]} Kxf6 {[%emt 0:01:11]} 23. Rfe1 {[%emt 0:00:13]} Bd7 {[%emt 0:
00:12]} 24. Re3 {[%emt 0:00:16]} Rbe8 {[%emt 0:00:15]} 25. Rbe1 Rxe3 {[%emt 0:
00:04]} 26. Rxe3 {[%emt 0:00:01]} Re8 {[%emt 0:00:45]} 27. Kf1 {[%emt 0:01:17]}
Rxe3 {[%emt 0:00:04]} 28. fxe3 {[%emt 0:00:01]} Ke5 {[%emt 0:00:11]} 29. Ke2 {
[%emt 0:00:19]} g5 {[%emt 0:00:19]} 30. Bf3 {[%emt 0:00:37]} h6 {[%emt 0:00:18]
} 31. Kd3 {[%emt 0:00:33]} Bf5+ {[%emt 0:00:12]} 32. Kc3 {[%emt 0:00:27]} Be4 {
[%emt 0:00:25]} 33. Be2 {[%emt 0:00:44]} Bg2 {[%emt 0:01:10]} 34. Bd3 {[%emt 0:
00:37]} Bh3 {[%emt 0:00:21]} 35. Kd2 {[%emt 0:00:24]} h5 {[%emt 0:00:20]} 36.
Bg6 {[%emt 0:00:23]} h4 {[%emt 0:00:03]} 37. gxh4 {[%emt 0:02:16]} gxh4 {[%emt
0:00:01]} 38. Bh5 {[%emt 0:00:03]} Bg2 {[%emt 0:00:09]} 39. Bg6 {[%emt 0:00:29]
} Bf3 {[%emt 0:00:16]} 40. Bd3 {[%emt 0:00:06]} Bg2 {[%emt 0:00:18]} 41. Bg6 {
[%emt 0:00:03]} Kf6 {[%emt 0:00:02]} 42. Bh5 {[%emt 0:00:03]} Ke5 {[%emt 0:00:
02]} 43. Bg6 Be4 {[%emt 0:00:22]} 44. Bxe4 {[%emt 0:00:19]} Kxe4 {[%emt 0:00:
02]} 45. Ke2 {[%emt 0:00:01]} c6 {[%emt 0:00:13]} 46. h3 {[%emt 0:00:03]} d5 {
[%emt 0:00:33]} 47. cxd5 {[%emt 0:00:02]} cxd5 {[%emt 0:00:02]} 48. Kf2 {[%emt
0:00:11]} b5 {[%emt 0:00:13]} 49. Ke2 {[%emt 0:00:06]} b4 {[%emt 0:00:14]} 50.
Kf2 {[%emt 0:00:01]} d4 {[%emt 0:00:00]} 51. exd4 {[%emt 0:00:03]} Kxd4 {[%emt
0:00:02]} 52. Kf3 {[%emt 0:00:03]} Kc3 53. Kg4 {[%emt 0:00:00]} Kb2 {[%emt 0:
00:01]} 54. Kxh4 {[%emt 0:00:01]} Kxa2 {[%emt 0:00:04]} 55. Kg5 {[%emt 0:00:00]
} a4 {[%emt 0:00:07]} 56. bxa4 {[%emt 0:00:16]} b3 {[%emt 0:00:00]} 57. h4 {
[%emt 0:00:03]} b2 {[%emt 0:00:02]} 58. h5 {[%emt 0:00:02]} b1=Q {[%emt 0:00:
02]} 59. Kh6 {[%emt 0:00:10]} Qf5 {[%emt 0:00:08]} 60. a5 {[%emt 0:00:05]} Qxa5
{[%emt 0:00:03]} 61. Kg6 {[%emt 0:00:01]} Qb6+ {[%emt 0:00:02]} 62. Kg7 {[%emt
0:00:01]} Qc7+ {[%emt 0:00:01]} 63. Kg6 {[%emt 0:00:18]} Qd6+ {[%emt 0:00:03]}
64. Kg7 {[%emt 0:00:01]} Qe7+ {[%emt 0:00:00]} 65. Kg6 {[%emt 0:00:02]} Qe6+ {
[%emt 0:00:02]} 66. Kh7 {[%emt 0:00:06]} Qf5+ {[%emt 0:00:05]} 67. Kh6 {[%emt
0:00:01]} Qg4 {[%emt 0:00:01]} 68. Kh7 {[%emt 0:00:03]} Qxh5+ {[%emt 0:00:02]}
69. Kg7 {[%emt 0:00:00]} Kb3 {[%emt 0:00:03]} 70. Kf8 {[%emt 0:00:01]} Qh7 {
[%emt 0:00:01]} 71. Ke8 {[%emt 0:00:00]} Kc4 {[%emt 0:00:01]} 72. Kf8 {[%emt 0:
00:00]} Kd5 {[%emt 0:00:02]} 73. Ke8 {[%emt 0:00:00]} Ke6 {[%emt 0:00:02]} 74.
Kd8 {[%emt 0:00:00]} Qd7# {[%emt 0:00:01]} 0-1

[Event "Dvaro taure"]
[Site "Taujenai, Lithuania"]
[Date "2021.11.28"]
[Round "9.6"]
[White "Valantiejus, Vaidotas"]
[Black "Stremavicius, Pijus"]
[Result "0-1"]
[WhiteElo "1962"]
[BlackElo "2175"]
[PlyCount "78"]
[EventDate "2021.??.??"]
[TimeControl "10+5"]
[WhiteClock "0:00:19"]
[BlackClock "0:08:12"]

1. e4 {[%emt 0:00:02]} c6 {[%emt 0:00:02]} 2. d4 {[%emt 0:00:03]} g6 {[%emt 0:
00:04]} 3. f4 {[%emt 0:00:23]} d5 {[%emt 0:00:02]} 4. e5 {[%emt 0:00:05]} h5 {
[%emt 0:00:01]} 5. Nf3 {[%emt 0:00:20]} Nh6 {[%emt 0:00:03]} 6. Bd3 {[%emt 0:
00:50]} Bg4 {[%emt 0:00:19]} 7. O-O {[%emt 0:00:12]} Nf5 {[%emt 0:00:05]} 8. c3
{[%emt 0:00:08]} e6 {[%emt 0:00:02]} 9. h3 {[%emt 0:00:39]} Bxf3 {[%emt 0:00:
05]} 10. Qxf3 {[%emt 0:00:07]} h4 {[%emt 0:00:03]} 11. Be3 {[%emt 0:01:01]} Qb6
{[%emt 0:00:19]} 12. b3 {[%emt 0:00:04]} c5 {[%emt 0:00:02]} 13. Bxf5 {[%emt 0:
00:31]} gxf5 {[%emt 0:00:02]} 14. Nd2 {[%emt 0:00:14]} Nc6 {[%emt 0:00:02]} 15.
Qf2 {[%emt 0:00:36]} cxd4 {[%emt 0:00:02]} 16. cxd4 {[%emt 0:00:07]} Ba3 {
[%emt 0:00:02]} 17. Nf3 {[%emt 0:00:10]} Kd7 {[%emt 0:00:09]} 18. Bc1 {[%emt 0:
00:10]} Be7 {[%emt 0:00:06]} 19. Bb2 {[%emt 0:00:35]} Rac8 {[%emt 0:00:11]} 20.
Rac1 {[%emt 0:00:05]} Nb4 {[%emt 0:00:02]} 21. Qe3 {[%emt 0:02:55]} Nxa2 {
[%emt 0:00:09]} 22. Rxc8 {[%emt 0:00:05]} Rxc8 {[%emt 0:00:02]} 23. Ng5 {[%emt
0:00:12]} Rc2 {[%emt 0:00:32]} 24. Ba1 {[%emt 0:00:35]} Ke8 {[%emt 0:00:41]}
25. Qf3 {[%emt 0:00:08]} Qb5 {[%emt 0:00:45]} 26. Qh5 {[%emt 0:00:46]} Bxg5 {
[%emt 0:00:02]} 27. Qxg5 {[%emt 0:00:29]} Qe2 {[%emt 0:00:01]} 28. Qg8+ {[%emt
0:00:34]} Ke7 {[%emt 0:00:00]} 29. Qg5+ {[%emt 0:00:04]} Kd7 {[%emt 0:00:00]}
30. Qg7 {[%emt 0:00:02]} Kc6 {[%emt 0:00:01]} 31. b4 {[%emt 0:00:15]} Nxb4 {
[%emt 0:00:00]} 32. Rb1 {[%emt 0:00:04]} Nd3 {[%emt 0:00:10]} 33. Bc3 {[%emt 0:
00:10]} Qe3+ {[%emt 0:00:35]} 34. Kh1 {[%emt 0:00:04]} Nf2+ {[%emt 0:00:01]}
35. Kh2 {[%emt 0:00:04]} Qxf4+ {[%emt 0:00:07]} 36. Kg1 {[%emt 0:00:02]} Nxh3+
{[%emt 0:00:03]} 37. Kh1 {[%emt 0:00:02]} Rc1+ {[%emt 0:00:15]} 38. Rxc1 {
[%emt 0:00:01]} Qxc1+ {[%emt 0:00:01]} 39. Kh2 {[%emt 0:00:03]} Qg1+ {[%emt 0:
00:00]} 0-1

[Event "Dvaro taure"]
[Site "Taujenai, Lithuania"]
[Date "2021.11.28"]
[Round "9.7"]
[White "Maciuitis, Ignas"]
[Black "Bagvilas, Lukas"]
[Result "0-1"]
[WhiteElo "1862"]
[BlackElo "2022"]
[PlyCount "66"]
[EventDate "2021.??.??"]
[TimeControl "10+5"]
[WhiteClock "0:01:33"]
[BlackClock "0:03:45"]

1. e4 {[%emt 0:00:02]} c6 {[%emt 0:00:01]} 2. Nc3 {[%emt 0:00:02]} d5 {[%emt 0:
00:00]} 3. Nf3 {[%emt 0:00:00]} dxe4 {[%emt 0:00:02]} 4. Nxe4 {[%emt 0:00:02]}
Nf6 {[%emt 0:00:00]} 5. Nxf6+ exf6 {[%emt 0:00:00]} 6. d4 {[%emt 0:00:07]} Bd6
{[%emt 0:00:04]} 7. Be2 {[%emt 0:00:07]} O-O {[%emt 0:00:02]} 8. O-O {[%emt 0:
00:02]} Nd7 {[%emt 0:00:00]} 9. c3 {[%emt 0:00:05]} Re8 {[%emt 0:00:02]} 10.
Be3 {[%emt 0:00:11]} Nf8 {[%emt 0:00:01]} 11. Qc2 {[%emt 0:00:06]} Ng6 {[%emt
0:00:03]} 12. Rad1 {[%emt 0:00:10]} Qc7 {[%emt 0:00:01]} 13. h3 {[%emt 0:00:19]
} Be6 {[%emt 0:00:02]} 14. Bd3 {[%emt 0:00:07]} Qd7 {[%emt 0:00:06]} 15. Bxg6 {
[%emt 0:03:56]} hxg6 {[%emt 0:00:02]} 16. Qd2 {[%emt 0:00:01]} g5 {[%emt 0:00:
22]} 17. h4 {[%emt 0:01:44]} Bd5 {[%emt 0:00:07]} 18. Nh2 {[%emt 0:00:40]} gxh4
{[%emt 0:00:40]} 19. Bf4 {[%emt 0:00:00]} Bf8 {[%emt 0:01:56]} 20. Rfe1 {[%emt
0:00:14]} Qf5 {[%emt 0:00:10]} 21. Re3 {[%emt 0:00:27]} g5 {[%emt 0:00:15]} 22.
Rxe8 {[%emt 0:00:40]} Rxe8 {[%emt 0:00:02]} 23. Be3 {[%emt 0:00:00]} Qe4 {
[%emt 0:00:18]} 24. Nf3 {[%emt 0:00:05]} Qg4 {[%emt 0:00:14]} 25. Ne1 {[%emt 0:
00:14]} Bd6 {[%emt 0:00:17]} 26. b3 {[%emt 0:00:19]} b5 {[%emt 0:00:10]} 27.
Rc1 {[%emt 0:01:10]} h3 {[%emt 0:01:38]} 28. f3 {[%emt 0:00:06]} Qg3 {[%emt 0:
00:15]} 29. c4 {[%emt 0:00:01]} Qh2+ {[%emt 0:00:09]} 30. Kf2 {[%emt 0:00:01]}
Bg3+ {[%emt 0:00:18]} 31. Kf1 {[%emt 0:00:05]} Bxe1 {[%emt 0:01:33]} 32. Rxe1 {
[%emt 0:00:11]} Qh1+ {[%emt 0:00:05]} 33. Bg1 {[%emt 0:00:04]} Rxe1+ {[%emt 0:
00:04]} 0-1

[Event "Dvaro taure"]
[Site "Taujenai, Lithuania"]
[Date "2021.11.28"]
[Round "9.8"]
[White "Greicius, Pijus"]
[Black "Viskelis, Darius"]
[Result "1-0"]
[WhiteElo "1949"]
[BlackElo "1981"]
[PlyCount "69"]
[EventDate "2021.??.??"]
[TimeControl "10+5"]
[WhiteClock "0:04:45"]
[BlackClock "0:00:10"]

1. d4 {[%emt 0:00:00]} d5 {[%emt 0:00:01]} 2. c4 {[%emt 0:00:02]} e6 {[%emt 0:
00:02]} 3. Nc3 {[%emt 0:00:03]} c5 {[%emt 0:00:00]} 4. e3 {[%emt 0:00:04]} Nf6
{[%emt 0:00:05]} 5. Nf3 {[%emt 0:00:04]} Nc6 {[%emt 0:00:02]} 6. a3 {[%emt 0:
00:06]} cxd4 {[%emt 0:00:04]} 7. exd4 {[%emt 0:00:12]} dxc4 {[%emt 0:00:08]} 8.
Bxc4 {[%emt 0:00:02]} Be7 {[%emt 0:00:02]} 9. O-O {[%emt 0:00:04]} O-O {[%emt
0:00:03]} 10. Be3 {[%emt 0:00:03]} b6 {[%emt 0:00:39]} 11. Qe2 {[%emt 0:00:19]}
Bb7 {[%emt 0:00:41]} 12. Rfd1 {[%emt 0:00:02]} Na5 {[%emt 0:00:18]} 13. Ba2 {
[%emt 0:00:17]} Nd5 {[%emt 0:00:11]} 14. Rac1 {[%emt 0:00:15]} Rc8 {[%emt 0:00:
22]} 15. Qd3 {[%emt 0:00:45]} Nxc3 {[%emt 0:00:36]} 16. Rxc3 {[%emt 0:00:02]}
Rxc3 {[%emt 0:00:08]} 17. Qxc3 {[%emt 0:00:02]} Bxf3 {[%emt 0:00:44]} 18. gxf3
{[%emt 0:00:02]} Bd6 {[%emt 0:00:38]} 19. h3 {[%emt 0:00:58]} Qf6 {[%emt 0:01:
16]} 20. Kg2 {[%emt 0:00:46]} Qg6+ {[%emt 0:00:03]} 21. Kf1 {[%emt 0:00:03]}
Qf5 {[%emt 0:01:05]} 22. Kg2 {[%emt 0:00:02]} Qg6+ {[%emt 0:00:46]} 23. Kf1 {
[%emt 0:00:02]} Rd8 {[%emt 0:00:33]} 24. b4 {[%emt 0:00:53]} Nb7 {[%emt 0:00:
12]} 25. Qc6 {[%emt 0:00:02]} Rb8 {[%emt 0:00:47]} 26. Bb1 {[%emt 0:00:06]} Qh5
{[%emt 0:00:11]} 27. Rc1 {[%emt 0:00:50]} Qxh3+ {[%emt 0:00:17]} 28. Ke2 {
[%emt 0:00:00]} e5 {[%emt 0:00:22]} 29. dxe5 {[%emt 0:00:45]} Bxe5 {[%emt 0:00:
06]} 30. Rd1 {[%emt 0:00:37]} Bf6 {[%emt 0:00:31]} 31. Rd7 {[%emt 0:00:08]} Nd8
{[%emt 0:00:31]} 32. Qc7 {[%emt 0:00:08]} Qe6 {[%emt 0:00:46]} 33. Rd6 {[%emt
0:00:18]} Qe5 {[%emt 0:00:22]} 34. Qxb8 {[%emt 0:00:08]} Qb2+ {[%emt 0:00:15]}
35. Rd2 {[%emt 0:00:02]} 1-0

[Event "Dvaro taure"]
[Site "Taujenai, Lithuania"]
[Date "2021.11.28"]
[Round "9.9"]
[White "Posaskov, Nikita"]
[Black "Gerasimovic, Stanislav"]
[Result "1-0"]
[WhiteElo "1971"]
[BlackElo "1790"]
[PlyCount "89"]
[EventDate "2021.??.??"]
[TimeControl "10+5"]
[WhiteClock "0:02:53"]
[BlackClock "0:06:09"]

1. d4 {[%emt 0:00:02]} Nf6 {[%emt 0:00:03]} 2. Nf3 {[%emt 0:00:05]} c5 {[%emt
0:00:02]} 3. c4 {[%emt 0:00:03]} cxd4 {[%emt 0:00:02]} 4. Nxd4 {[%emt 0:00:02]}
e5 {[%emt 0:00:02]} 5. Nb5 {[%emt 0:00:01]} d5 {[%emt 0:00:02]} 6. cxd5 {[%emt
0:00:03]} a6 {[%emt 0:00:00]} 7. N5c3 {[%emt 0:00:04]} Bc5 {[%emt 0:00:07]} 8.
e3 {[%emt 0:00:08]} O-O {[%emt 0:00:02]} 9. Bd3 {[%emt 0:00:21]} Nbd7 {[%emt 0:
00:04]} 10. O-O {[%emt 0:00:07]} Nb6 {[%emt 0:00:02]} 11. a3 {[%emt 0:00:09]}
Nbxd5 {[%emt 0:00:12]} 12. Nxd5 {[%emt 0:00:02]} Qxd5 {[%emt 0:00:04]} 13. Nc3
{[%emt 0:00:10]} Qd8 {[%emt 0:00:02]} 14. b4 {[%emt 0:00:14]} Be7 {[%emt 0:00:
08]} 15. Bb2 {[%emt 0:00:02]} h6 {[%emt 0:00:02]} 16. Ne4 {[%emt 0:00:47]} Nxe4
{[%emt 0:00:29]} 17. Bxe4 {[%emt 0:00:01]} Bf6 {[%emt 0:00:20]} 18. Qxd8 {
[%emt 0:02:37]} Rxd8 {[%emt 0:00:10]} 19. Rfd1 {[%emt 0:00:06]} Rxd1+ {[%emt 0:
00:21]} 20. Rxd1 {[%emt 0:00:02]} g6 {[%emt 0:00:42]} 21. f4 {[%emt 0:00:12]}
Bg4 {[%emt 0:00:09]} 22. Rd3 {[%emt 0:00:53]} Rb8 {[%emt 0:01:09]} 23. Bxe5 {
[%emt 0:00:52]} Bxe5 {[%emt 0:00:07]} 24. fxe5 {[%emt 0:00:01]} Be6 {[%emt 0:
00:08]} 25. Rd6 {[%emt 0:00:03]} b6 {[%emt 0:00:25]} 26. Bxg6 {[%emt 0:00:06]}
Rc8 {[%emt 0:00:16]} 27. Bd3 {[%emt 0:00:36]} Rc3 {[%emt 0:00:07]} 28. Bxa6 {
[%emt 0:00:03]} Rxa3 {[%emt 0:00:02]} 29. Rxb6 {[%emt 0:00:03]} Rxe3 {[%emt 0:
00:04]} 30. Rb5 {[%emt 0:01:00]} Rb3 {[%emt 0:00:22]} 31. Rb8+ {[%emt 0:00:50]}
Kg7 {[%emt 0:00:00]} 32. Be2 {[%emt 0:00:06]} Re3 {[%emt 0:00:11]} 33. Bf3 {
[%emt 0:00:03]} Rxe5 {[%emt 0:00:03]} 34. b5 {[%emt 0:00:03]} Re1+ {[%emt 0:00:
05]} 35. Kf2 {[%emt 0:00:00]} Rb1 {[%emt 0:00:01]} 36. b6 {[%emt 0:00:02]} Rb2+
{[%emt 0:00:05]} 37. Kg3 {[%emt 0:00:02]} Rb3 {[%emt 0:00:09]} 38. Kf4 {[%emt
0:00:52]} Rb4+ {[%emt 0:00:05]} 39. Ke5 {[%emt 0:00:03]} Rb1 {[%emt 0:00:11]}
40. b7 {[%emt 0:00:03]} Re1+ {[%emt 0:00:13]} 41. Kf4 {[%emt 0:00:02]} Rb1 {
[%emt 0:00:08]} 42. Rd8 {[%emt 0:00:03]} Rb4+ {[%emt 0:00:07]} 43. Kg3 {[%emt
0:00:01]} h5 {[%emt 0:00:14]} 44. b8=Q {[%emt 0:00:05]} h4+ {[%emt 0:00:02]}
45. Kf2 {[%emt 0:00:01]} 1-0